Cogmind - Beta 14 @@@ ROGUE MODE // 2024.09.25 @ 10:43:01 Player: Aneyh Result: Self-destructed Performance ------------- Evolutions (1) 500 Regions Visited (2) 400 Robots Destroyed (23) 115 Value Destroyed (488) 488 Prototype IDs (2) 40 Alien Tech Used (0) 0 Bonus (0) 0 TOTAL SCORE: 1543 Bonus ------- None Cogmind --------- Core Integrity 265/400 Matter 300/300 Energy 100/100 System Corruption 0% Temperature Cool (0) Movement Walking (120) Location -9/Materials Parts ------- > --- POWER (1) -------- (None) > --- PROPULSION (2) --- Aluminum Leg Aluminum Leg > --- UTILITY (4) ------ Small Storage Unit Small Storage Unit Sensor Array Improved Signal Interpreter > --- WEAPON (2) ------- EM Pulse Gun > --- INVENTORY (8) ---- Aluminum Leg Improved Aluminum Leg Improved Heat Sink Improved Signal Interpreter Terrain Scan Processor Reactive Plating Reactive Plating Reactive Plating Peak State ------------ > --- POWER ------------ Ion Engine > --- PROPULSION ------- Improved Aluminum Leg Improved Aluminum Leg > --- UTILITY ---------- Small Storage Unit Small Storage Unit Improved Signal Interpreter Reactive Plating > --- WEAPON ----------- Particle Gun Particle Gun > --- INVENTORY -------- Improved Aluminum Leg Improved Heat Sink Improved Signal Interpreter Reactive Plating Reactive Plating EM Pulse Gun Grenade Launcher [Rating: 18] Favorites ----------- Power Ion Engine Engine Ion Engine Propulsion Aluminum Leg Leg Aluminum Leg Utility Small Storage Unit Device Sensor Array Storage Small Storage Unit Processor Improved Signal Interpreter Protection Reactive Plating Weapon Particle Gun Energy Gun Particle Gun Ballistic Gun Assault Rifle Launcher Grenade Launcher Build | -11 -10 -9 ------- Run | Yrd Mat Mat Slots Evolved 2 | . . 2 Power . | . . . Propulsion . | . . . Utility 2 | . . 2 Weapon . | . . . Parts Attached 29 | 5 11 13 Power 4 | 1 3 . Engine 4 | 1 3 . Core . | . . . Reactor . | . . . Propulsion 9 | 2 2 5 Treads . | . . . Leg 9 | 2 2 5 Wheel . | . . . Hover . | . . . Flight . | . . . Utility 5 | 1 1 3 Device 1 | . . 1 Storage 2 | 1 1 . Processor 1 | . . 1 Hackware . | . . . Protection 1 | . . 1 Artifact . | . . . Weapon 11 | 1 5 5 Energy Gun 7 | 1 3 3 Energy Cannon . | . . . Ballistic Gun 2 | . 2 . Ballistic Cannon . | . . . Launcher 2 | . . 2 Special Weapon . | . . . Impact Weapon . | . . . Slashing Weapon . | . . . Piercing Weapon . | . . . Special Melee Weapon . | . . . Unidentified Prototypes . | . . . Parts Lost 8 | . 2 6 Power 2 | . 1 1 Propulsion 2 | . . 2 Utility . | . . . Weapon 4 | . 1 3 Highest Loss Streak 4 | . 2 4 To Critical Strikes . | . . . Average Slot Usage (%) 85 | . 84 86 Engine 11 | . 12 10 Leg 24 | . 27 20 Device 2 | . . 4 Storage 21 | . 21 22 Processor 3 | . . 8 Protection 1 | . . 3 Energy Gun 13 | . 14 12 Ballistic Gun 4 | . 7 1 Launcher 1 | . . 2 Peak Build Rating 18 | 5 9 18 Average Rating 9 | 2 6 13 On Entrance 4 | . 5 9 Naked Turns . | . . . Heaviest Build 31 | 11 20 31 Greatest Support 26 | 20 20 26 Greatest Overweight (x) 8 | . . 8 Average Overweight (x) . | . . . Largest Inventory Capacity 8 | 8 8 8 Average Capacity 7 | 6 8 8 Most Carried 8 | 5 8 8 Average Carried 6 | 2 6 6 Final Capacity 8 | 8 8 8 Final Carried 8 | 2 8 8 Class Distribution -------------------- 100% | Mutant Dominant Class ---------------- Mutant | -10/Materials Mutant | -9/Materials Resources | -11 -10 -9 ----------- Run | Yrd Mat Mat Matter Collected 603 | 217 190 196 Remotely . | . . . Salvage Created 799 | . 459 340 Parts 54 | . 22 32 Haulers Intercepted 1 | . . 1 Recyclers Shooed . | . . . Parts Field Recycled . | . . . Retrieved Matter . | . . . Parts Self-Destructed . | . . . Prevented . | . . . Kills | -11 -10 -9 ------- Run | Yrd Mat Mat Combat Hostiles Destroyed 13 | . 4 9 Guns 10 | . 4 6 AOE 3 | . . 3 Classes Destroyed 9 | . 2 7 Worker 2 | . . 2 Builder 1 | . . 1 Hauler 1 | . . 1 Recycler 3 | . 3 . Mechanic 1 | . . 1 Watcher 2 | . . 2 Swarmer 4 | . . 4 Grunt 8 | . 4 4 Sentry 1 | . . 1 Best Kill Streak 10 | . 4 10 Combat Bots Only 5 | . 2 5 Max Kills in Single Turn 4 | . 1 4 Gunslinging . | . . . Exploded 2 | . . 2 Melee . | . . . Uniques/NPCs Destroyed . | . . . Combat | -11 -10 -9 -------- Run | Yrd Mat Mat Hostile Shots Fired 112 | . 36 76 Missed 25 | . 5 20 Damage Taken 1126 | . 451 675 Core 196 | . 61 135 Absorbed by Shields . | . . . Ignored by Resistances 26 | . . 26 Core Remaining (%) 87 | 100 75 . Volleys Fired 56 | . 26 30 Largest 2 | . 2 2 Hottest 130 | . 105 130 Shots Fired 95 | . 49 46 Gun 87 | . 49 38 Cannon . | . . . Launcher 8 | . . 8 Special . | . . . Kinetic 21 | . 19 2 Thermal 56 | . 30 26 Explosive 8 | . . 8 Electromagnetic 10 | . . 10 Robot Hit Streak 13 | . 13 5 Robot Miss Streak 4 | . 3 4 Penetration Max . | . . . Secondary Targets 1 | . 1 . Max Gunslinging Chain 1 | . 1 . Shots Hit Robots 59 | . 37 22 Core Hits 40 | . 16 24 Critical Kills . | . . . Critical Parts Destroyed . | . . . Critical Strikes 3 | . 2 1 Burn 3 | . 2 1 Melee Attacks . | . . . Impact . | . . . Slashing . | . . . Piercing . | . . . Sneak Attacks . | . . . Combat Hostiles . | . . . Follow-up Attacks . | . . . Damage Inflicted 1234 | . 419 815 Guns 746 | . 419 327 Cannons . | . . . Explosions 488 | . . 488 Melee . | . . . Ramming . | . . . Kinetic 225 | . 203 22 Thermal 435 | . 216 219 Explosive 488 | . . 488 Electromagnetic 86 | . . 86 Impact . | . . . Slashing . | . . . Piercing . | . . . Highest Corruption . | . . . Average Corruption . | . . . Corruption Purged . | . . . Corruption Blocked . | . . . Overload Shots . | . . . Overflow Damage . | . . . Projectiles . | . . . Explosions . | . . . Melee . | . . . Knockbacks . | . . . Impact . | . . . Kinetic . | . . . Secondary . | . . . Self-Inflicted Damage 18 | . . 18 Shots 1 | . . 1 Rammed . | . . . Targets Rammed . | . . . Kicked . | . . . Crushed . | . . . Highest Temperature 350 | . 350 343 Average Temperature 126 | . 134 118 Received Heat Transfer 576 | . 273 303 Effects 6 | . 3 3 Shutdowns 2 | . 1 1 Energy Bleed 2 | . 1 1 Interference 1 | . 1 . Short Circuit 1 | . . 1 Siege Activations . | . . . Robots Corrupted . | . . . Combat Hostiles . | . . . Parts Fried . | . . . Impact Corruptions . | . . . Robots Melted . | . . . Combat Hostiles . | . . . Parts Melted 1 | . . 1 Heat Transferred 1261 | . 669 592 Parts Sabotaged . | . . . Parts Stolen . | . . . Parts Stripped . | . . . Power Chain Reactions . | . . . Alert | -11 -10 -9 ------- Run | Yrd Mat Mat Peak Influence 354 | . 95 354 Initial . | . . . Average 103 | . 22 209 Maximum Alert Level 1 | . . 1 Low Security (%) 81 | 100 100 57 Level 1 18 | . . 42 Level 2 . | . . . Level 3 . | . . . Level 4 . | . . . Level 5 . | . . . High Security . | . . . Max Security . | . . . Squads Dispatched . | . . . Investigation . | . . . Extermination . | . . . Reinforcement . | . . . Assault . | . . . Garrison . | . . . Intercept . | . . . Searches Triggered . | . . . Construction Impeded . | . . . Haulers Reinforced . | . . . Active Scanning Responses . | . . . Cargo Convoy Interrupts . | . . . Stealth | -11 -10 -9 --------- Run | Yrd Mat Mat Distress Signals 2 | . . 2 Communications Jammed . | . . . Distress Signals . | . . . Times Spotted 22 | . 5 17 Peak Tracking Total 7 | . 3 7 Tactical Retreats 2 | . . 2 Traps | -11 -10 -9 ------- Run | Yrd Mat Mat Traps Triggered 1 | . 1 . Indirectly . | . . . Trap Hack Attempts . | . . . Triggered . | . . . Disarmed . | . . . Reprogrammed . | . . . Reused . | . . . Traps Extracted . | . . . Installed . | . . . Triggered . | . . . Machines | -11 -10 -9 ---------- Run | Yrd Mat Mat Machines Disabled 3 | . . 3 Max in Single Turn 1 | . . 1 Machines Repaired . | . . . Machines Dismantled . | . . . Machines Sabotaged . | . . . Overloaded Fab Kills . | . . . Hacking | -11 -10 -9 --------- Run | Yrd Mat Mat Machines Accessed 4 | . 1 3 Terminals 2 | . . 2 Fabricators . | . . . Repair Stations . | . . . Recycling Units 1 | . 1 . Scanalyzers 1 | . . 1 Garrison Access . | . . . Total Hacks 10 | . 3 7 Successful 8 | . 3 5 Failed 2 | . . 2 Catastrophic . | . . . Database Lockouts . | . . . Manual . | . . . Terminals 5 | . . 5 Fabricators . | . . . Repair Stations . | . . . Recycling Units 3 | . 3 . Scanalyzers 2 | . . 2 Garrison Access . | . . . Terminal Hacks 3 | . . 3 Record 1 | . . 1 Prototype ID Bank 1 | . . 1 Hauler Manifests 1 | . . 1 Fabricator Hacks . | . . . Repair Station Hacks . | . . . Recycling Unit Hacks 3 | . 3 . Process 2 | . 2 . Report Inventory 1 | . 1 . Scanalyzer 2 | . . 2 Insert Component 1 | . . 1 Analyze 1 | . . 1 Garrison Access Hacks . | . . . Unauthorized Hacks . | . . . Terminals . | . . . Fabricators . | . . . Repair Stations . | . . . Recycling Units . | . . . Scanalyzers . | . . . Garrison Access . | . . . Data Cores Recovered . | . . . Used . | . . . Hacking Detections 3 | . 1 2 Full Trace Events 1 | . 1 . Feedback Events . | . . . Feedback Blocked . | . . . Robot Schematics Acquired . | . . . Robots Built . | . . . Authchips . | . . . Time . | . . . Total Robot Build Rating . | . . . Part Schematics Acquired 1 | . . 1 Parts Built . | . . . Authchips . | . . . Time . | . . . Total Part Build Rating . | . . . Parts Repaired . | . . . Time . | . . . Parts Recycled . | . . . Recycled Matter 6 | . 6 . Retrieved Matter . | . . . Retrieved Components . | . . . Parts Scanalyzed 1 | . . 1 Part Schematics Acquired 1 | . . 1 Parts Damaged . | . . . Bothacking | -11 -10 -9 ------------ Run | Yrd Mat Mat Used RIF Installer . | . . . Robots Hacked . | . . . Non-combat . | . . . Combat . | . . . Robot Hacks Applied . | . . . Relay Couplers Released . | . . . Fabnet Peak Effective % . | . . . Robots Rewired . | . . . Allies Hacked . | . . . Hacks Repelled . | . . . Allies | -11 -10 -9 -------- Run | Yrd Mat Mat Total Allies . | . . . Largest Group . | . . . Highest-Rated Group . | . . . Highest-Rated Ally . | . . . Total Orders . | . . . Ally Attacks . | . . . Total Damage . | . . . Kills . | . . . Allies Corrupted . | . . . Allies Melted . | . . . Intel | -11 -10 -9 ------- Run | Yrd Mat Mat Robot Analysis Total . | . . . Derelict Logs Recovered . | . . . Drone Launches . | . . . Drone Recoveries . | . . . Exploration | -11 -10 -9 ------------- Run | Yrd Mat Mat Turns Passed 1010 | 54 512 444 Spaces Moved 503 | 40 244 219 Core 13 | 8 . 5 Treads . | . . . Legs 490 | 32 244 214 Wheels . | . . . Hover . | . . . Flight . | . . . Fastest Speed 50 | 50 120 120 Average Speed 133 | 106 120 153 Slowest Speed 450 | 120 120 450 Overloaded Moves . | . . . Propulsion Burnouts . | . . . Robots Hopped . | . . . Cave-ins Triggered . | . . . Exploration Rate (%) 17 | 3 36 14 Regions Visited 2 Branch Regions . Pre-discovered Areas . | . . . Known Exits Taken . | . . . Unknown Exits Taken 2 | 1 1 . Scrap Searched . | . . . Spaces Dug . | . . . Terrain Destroyed 35 | . . 35 Melee . | . . . Projectile . | . . . AOE 35 | . . 35 Terrain Rammed . | . . . Walls Destroyed . | . . . Machines Disabled . | . . . Actions | -11 -10 -9 --------- Run | Yrd Mat Mat Total 745 | 51 412 282 Wait 117 | . 117 . Move 501 | 39 243 219 Hop . | . . . Pick Up 34 | 7 14 13 Fast Attach . | . . . Attach 18 | 5 7 6 Detach . | . . . Swap 11 | . 4 7 Drop 8 | . 1 7 Fire 56 | . 26 30 Melee . | . . . Ram . | . . . Kick . | . . . Crush . | . . . Escape Stasis . | . . . Rewire . | . . . Trap . | . . . Miscellaneous . | . . . Route ------- -11/Scrapyard -10/Materials (discovered 2 exits: *Mat / [*Min]) -9/Materials (discovered 2 exits: [*Min] / [*Sto]) History --------- Turn | Location | Event 5 | -11/Scrapyard | Discovered new exit (range 16) 55 | -11/Scrapyard | Entered Materials 295 | -10/Materials | Discovered new exit (range 16) 320 | -10/Materials | Build established: Mutant 517 | -10/Materials | Discovered new exit (range 12) 567 | -10/Materials | Entered another Materials area 567 | -9/Materials | Evolved 2 slots: Utility x2 798 | -9/Materials | Discovered new exit (range 8) 850 | -9/Materials | Lost 4 parts (2n2w) 995 | -9/Materials | Discovered new exit (range 15) 1011 | -9/Materials | Self-destructed Last Messages --------------- Acquired 10 matter. K-01 Serf cleans the Atomic Centrifuge. Connecting with Scanalyzer... >>Insert(Imp. Signal Interpreter) Scanning Imp. Signal Interpreter... Ready to analyze. >>Scanalyze Scanning: Imp. Signal Interpreter... Schematic downloaded. K-01 Serf cleans the Atomic Centrifuge. Atomic Centrifuge disabled. K-01 Serf collects debris. R-06 Scavenger collects Heat Sink. R-06 Scavenger collects Lgt. Ion Engine. EXIT=FOUND R-06 Scavenger collects Beam Rifle. Machine disabled. K-01 Serf collects debris. Ion Engine destroyed. K-01 Serf collects debris. Map ----- +----------------------------------------------------+ | ?????????????????????????????????????????????????? | | ?????????????????????????????????????????????????? | | ?????????????????????????????????????????????????? | | ?????????????????????????????????????????????????? | | ?????????????????????????????????????????????????? | | ?????????????????????????????????????????????????? | | ???????????????????????? ????????????????????????? | | ???????????????????????? ???????????????????????? | | ???????????????????????? ???????????????????????? | | ???????????????????????? ???????????????????????? | | ???????????????????????? ???????????????????????? | | ??????? ??????????????# ???????????????????????? | | ??????? ?????????????# ???????????????????????? | | ??????? #?????????????# ???????????????????????? | | ??????# #?????????????# #??????????????????????? | | ??????# #?????????????# #??#########???????????? | | ??????# ###############t#### ##### ????? | | ??????# ???? | | ??????# < < ???? | | ??????# """ """ k ???? | | ??????+ """"""""" k#" "#####???????? | | ??????# """"" " #" | | "#???????????? | | ??????# [% #"""""""#???????????? | | ####### ! #########???????????? | | = **! +=! #???????????? | | ###############@%!##! """ #???????????? | | #????########## !=##* """ #####???????? | | ########+#####?#!!! !!### =*## " " # ????????? | | ## = % #?#!![ #?#! ## r+ ??????????? | | ""## %= #?# ! ###g ## #???????????? | | ""## = #?#### ## % # #???????????? | | T"## = ###### a # #???????????? | | ""## [k % # "" #???????????? | | ""## =###### # S"" #???????????? | | ## #????# ## # "" #???????????? | | ## #????# ######### ######???????????? | | ############????# + ??????###????????????????? | | #???????????????# # ?????????????????????????? | | #???????????????# # ?????????????????????????? | | #???????????????##+###?????????????????????????? | | #+#??????????????????????????????????????????????? | | ?????????????????????????????????????????????????? | | ?????????????????????????????????????????????????? | | ?????????????????????????????????????????????????? | | ?????????????????????????????????????????????????? | | ?????????????????????????????????????????????????? | | ?????????????????????????????????????????????????? | | ?????????????????????????????????????????????????? | | ?????????????????????????????????????????????????? | | ?????????????????????????????????????????????????? | +----------------------------------------------------+ Best States ------------- Heat Dissipation 28 Energy Generation 10 Energy Capacity 250 Matter Stores 300 Matter Capacity 300 Sight Range 16 Robot Scan Range 14 Terrain Scan Density 10 Armor Coverage 150 Resistance: KI 20 Evasion (%) 55 Item Schematics ----------------- Imp. Signal Interpreter | -9/Materials | Scanalyzed Robot Schematics ------------------ None Fabricated ------------ Nothing Alien Tech Used ----------------- None Achievements -------------- None Challenges ------------ None Game ------ Seed AngularOmegaStick Manual? 0 Play Time 00:30:49 Cumulative 23.8 hours Start 2024.09.25 @ 10:13:14 End 2024.09.25 @ 10:43:01 Sessions 1 Manual Loads 0 Difficulty Rogue Special Mode None Game No. 32 Rogue 29 Adventurer 0 Explorer 3 Win Type - Total 0 Types 0/0/0/0/0/0/0/0/0 Lore% 6 Gallery% 18 Achievement% 16 Wizard Run 0 Options --------- Layout 1 ASCII 0 Keyboard 0 Movement Mouse Keybinds 0 Fullscreen 1 Font 18/SmallcapsGlow Map View 54x44 Zoom Use 0% Tactical HUD 0 Map Filters NONE Filters NONE Steam 1 RUN: e2d0a94d-54fc-42c7-b90f-b38451f9a3bc